bitfinex-derivatives/quotes_SOLF0:USTF0_20260129
["timestamp","ask_amount","ask_price","bid_price","bid_amount"]
[1769700989308,49.72642579,118.2,118.11,49.40300587]
[1769700989503,57.35382579,118.2,118.13,7.6312]
[1769700989914,57.35382579,118.2,118.11,49.40300587]
[1769700990211,7.6282,118.18,118.11,49.40300587]
[1769700990407,49.72642579,118.18,118.09,341.58879243]
[1769700990804,7.6294,118.16,118.09,341.58879243]
[1769700991406,49.72642579,118.15,118.09,3.74879243]
[1769700992001,57.35682579,118.15,118.09,3.74879243]
[1769700992203,49.72642579,118.15,118.09,3.74879243]
[1769700992711,49.72642579,118.15,118.05,49.40300587]
[1769700992712,45.47884609,118.13,118.05,49.40300587]
[1769700993305,45.47884609,118.13,118.06,7.6351]
[1769700993499,53.10894609,118.15,118.06,53.62866546]
[1769700993707,53.10894609,118.15,118.03,425.8841]
[1769700993708,45.47884609,118.13,118.03,353.07356546]
[1769700993908,45.47884609,118.13,118.04,45.99356546]
[1769700994507,45.47884609,118.11,118.01,45.99356546]
[1769700995215,45.47884609,118.11,118.03,45.99356546]
[1769700995415,7.6316,118.13,118.04,45.99356546]
[1769700995710,45.47884609,118.14,118.04,45.99356546]
[1769700995916,53.10954609,118.14,118.05,7.6363]
[1769700996112,53.10954609,118.14,118.04,118.7975]
[1769700996314,45.47884609,118.14,118.07,7.635]
[1769700996615,45.47884609,118.17,118.07,45.99356546]
[1769700996910,45.47884609,118.16,118.07,45.99356546]
[1769700997512,45.47884609,118.11,118.0,118.8395]
[1769700997718,45.47884609,118.1,118.0,45.99356546]
[1769700998215,7.6329,118.11,118.02,45.99356546]
[1769700998410,164.19014609,118.13,118.03,45.99356546]
[1769700998411,45.47884609,118.13,118.03,45.99356546]
[1769700998616,45.47884609,118.13,118.04,45.99356546]
[1769700998812,53.11054609,118.13,118.04,45.99356546]
[1769700999419,7.632,118.12,118.04,45.99356546]
[1769701000720,45.47884609,118.12,118.04,45.99356546]
[1769701001717,45.47884609,118.15,118.06,45.99356546]
[1769701002413,7.6307,118.14,118.06,45.99356546]
[1769701003020,7.6296,118.16,118.06,45.99356546]
[1769701003220,45.47884609,118.18,118.08,45.99356546]
[1769701003624,164.11224609,118.21,118.1,45.99356546]
[1769701004019,118.6455,118.2,118.1,45.99356546]
[1769701004413,45.47884609,118.18,118.1,45.99356546]
[1769701004614,45.47884609,118.17,118.07,52.82480444]
[1769701004916,7.6302,118.15,118.07,52.82480444]
[1769701005116,7.6302,118.15,118.07,45.99356546]
[1769701005623,164.15964609,118.16,118.07,45.99356546]
[1769701006224,7.6307,118.14,118.07,45.99356546]
[1769701006921,118.6722,118.17,118.07,45.99356546]
[1769701007117,164.15954609,118.16,118.07,45.99356546]
[1769701007624,45.47884609,118.16,118.07,45.99356546]
[1769701007811,118.664,118.18,118.07,45.99356546]
[1769701008018,7.6285,118.18,118.07,45.99356546]
[1769701008219,7.6285,118.18,118.07,52.82480444]
[1769701008418,45.47884609,118.19,118.1,45.99356546]
[1769701008620,45.47884609,118.22,118.12,45.99356546]
[1769701008919,45.47884609,118.22,118.13,45.99356546]
[1769701009115,7.626,118.22,118.13,45.99356546]
[1769701009314,45.47884609,118.22,118.13,45.99356546]
[1769701009520,164.10184609,118.22,118.13,45.99356546]
[1769701009725,45.47884609,118.21,118.1,45.99356546]
[1769701010027,7.6268,118.2,118.1,53.62666546]
[1769701010227,7.6268,118.2,118.12,45.99356546]
[1769701010622,45.47884609,118.21,118.12,45.99356546]
[1769701010623,7.6275,118.19,118.12,45.99356546]
[1769701010923,45.47884609,118.23,118.13,45.99356546]
[1769701011127,45.47884609,118.21,118.13,45.99356546]
[1769701012424,45.47884609,118.2,118.1,45.99356546]
[1769701012629,45.47884609,118.19,118.1,45.99356546]
[1769701013827,45.47884609,118.18,118.07,45.99356546]
[1769701014527,7.6294,118.16,118.07,53.62856546]
[1769701014727,170.98128507,118.17,118.07,45.99356546]
[1769701015134,164.15004609,118.17,118.07,45.99356546]
[1769701016141,53.10804609,118.17,118.07,45.99356546]
[1769701016641,53.10804609,118.17,118.08,50.03999725]
[1769701017036,7.6279,118.19,118.1,50.03999725]
[1769701017235,167.25187896,118.2,118.1,50.03999725]
[1769701017442,48.61067896,118.19,118.1,50.03999725]
[1769701017642,7.6288,118.17,118.1,57.67309725]
[1769701018342,7.6288,118.17,118.08,7.6339]
[1769701018343,167.28227896,118.17,118.08,7.6339]
[1769701018648,48.61067896,118.16,118.07,50.03999725]
[1769701019345,7.6307,118.14,118.07,57.67509725]
[1769701020237,56.24047896,118.16,118.08,7.6344]
[1769701020542,56.24047896,118.16,118.07,50.03999725]
[1769701020940,7.6283,118.18,118.09,50.03999725]
[1769701021338,48.61067896,118.19,118.09,168.78549725]
[1769701021537,48.61067896,118.19,118.1,50.03999725]
[1769701022342,48.61067896,118.17,118.07,50.03999725]
[1769701022844,48.61067896,118.17,118.09,57.67379725]
[1769701023047,7.6286,118.18,118.09,50.03999725]
[1769701023246,56.23867896,118.19,118.1,7.6332]
[1769701023544,56.23867896,118.19,118.1,50.03999725]
[1769701023746,48.61067896,118.22,118.12,56.87123623]
[1769701023940,7.6271,118.2,118.12,64.50283623]
[1769701024135,48.61067896,118.21,118.12,57.67159725]
[1769701025134,48.61067896,118.21,118.12,50.03999725]
[1769701025336,48.61067896,118.18,118.1,7.6326]
[1769701025546,48.61067896,118.21,118.11,50.03999725]
[1769701026344,48.61067896,118.21,118.12,50.03999725]
[1769701026850,7.6268,118.2,118.14,7.6304]
[1769701027147,48.61067896,118.24,118.13,50.03999725]
[1769701027851,56.23537896,118.24,118.16,7.629]
[1769701028047,310.67067896,118.27,118.16,50.03999725]
[1769701028240,48.61067896,118.27,118.18,50.03999725]
[1769701028441,48.61067896,118.27,118.18,56.87031207]
[1769701028844,48.61067896,118.27,118.2,7.6266]
[1769701029045,48.61067896,118.27,118.18,50.03999725]
[1769701029750,7.6229,118.26,118.18,57.66739725]
[1769701029938,48.61067896,118.29,118.19,50.03999725]
[1769701030139,56.23207896,118.29,118.21,7.626]
[1769701030440,48.61067896,118.32,118.21,50.03999725]
[1769701030640,48.61067896,118.3,118.21,50.03999725]
[1769701031448,167.14327896,118.31,118.19,50.03999725]
[1769701031639,48.61067896,118.31,118.2,56.87031207]
[1769701031842,167.11167896,118.34,118.22,56.87031207]
[1769701032040,7.6188,118.33,118.24,50.03999725]
[1769701032255,48.61067896,118.34,118.24,56.87031207]
[1769701032457,48.61067896,118.37,118.27,50.03999725]
[1769701032647,48.61067896,118.37,118.28,64.49171207]
[1769701032953,48.61067896,118.37,118.29,50.03999725]
[1769701033550,7.6148,118.39,118.29,57.66039725]
[1769701033757,48.61067896,118.43,118.32,56.87031207]
[1769701033948,167.02097896,118.43,118.33,50.03999725]
[1769701034256,48.61067896,118.4,118.3,50.03999725]
[1769701034458,48.61067896,118.39,118.3,50.03999725]
[1769701034957,167.07157896,118.38,118.28,337.92]
[1769701035164,167.07937896,118.37,118.27,50.03999725]
[1769701035652,56.22737896,118.36,118.27,50.03999725]
[1769701036247,56.22837896,118.35,118.27,50.03999725]
[1769701036560,48.61067896,118.34,118.25,337.88]
[1769701037045,48.61067896,118.34,118.24,50.03999725]
[1769701037249,167.10957896,118.34,118.24,50.03999725]
[1769701037450,167.10957896,118.34,118.21,456.4209]
[1769701037451,48.61067896,118.31,118.21,57.66569725]
[1769701037855,48.61067896,118.34,118.24,50.03999725]
[1769701038052,55.44099378,118.36,118.25,50.03999725]
[1769701038552,55.44099378,118.36,118.26,57.66239725]
[1769701038752,48.61067896,118.36,118.27,50.03999725]
[1769701039353,56.22747896,118.36,118.27,50.03999725]
[1769701040361,48.61067896,118.33,118.24,50.03999725]
[1769701040549,48.61067896,118.33,118.21,118.6278]
[1769701040550,48.61067896,118.29,118.21,50.03999725]
[1769701040750,48.61067896,118.29,118.19,50.03999725]
[1769701041358,48.61067896,118.29,118.19,168.68679725]
[1769701041557,48.61067896,118.29,118.2,50.03999725]
[1769701041760,55.44099378,118.29,118.2,50.03999725]
[1769701041957,63.06209378,118.29,118.2,50.03999725]
[1769701042253,55.44099378,118.29,118.2,50.03999725]
[1769701042462,7.62,118.31,118.21,57.66579725]
[1769701042652,7.62,118.31,118.21,50.03999725]
[1769701043048,48.61067896,118.33,118.22,50.03999725]
[1769701043550,48.61067896,118.33,118.24,50.03999725]
[1769701043755,7.6181,118.34,118.25,50.03999725]
[1769701044156,7.6181,118.34,118.25,57.66309725]
[1769701045764,174.70807896,118.36,118.26,7.6226]
[1769701045959,48.61067896,118.36,118.27,47.8393711]
[1769701046264,51.44100446,118.39,118.31,7.6194]
[1769701046460,51.44100446,118.39,118.3,47.8393711]
[1769701046461,51.44100446,118.38,118.3,47.8393711]
[1769701046859,51.44100446,118.37,118.27,385.5393711]
[1769701047563,51.44100446,118.36,118.27,393.1612711]
[1769701047867,51.44100446,118.36,118.27,55.4612711]
[1769701048055,51.44100446,118.36,118.27,47.8393711]
[1769701048360,51.44100446,118.39,118.29,47.8393711]
[1769701048560,51.44100446,118.39,118.3,47.8393711]
[1769701048762,59.05580446,118.39,118.3,55.4594711]
[1769701048965,169.90120446,118.38,118.27,47.8393711]
[1769701049165,51.44100446,118.38,118.29,47.8393711]
[1769701049560,59.05640446,118.38,118.29,47.8393711]
[1769701049857,51.44100446,118.37,118.29,47.8393711]
[1769701050063,51.44100446,118.37,118.27,337.66]
[1769701050264,51.44100446,118.37,118.28,47.8393711]
[1769701051059,7.6148,118.39,118.3,47.8393711]
[1769701051660,51.44100446,118.4,118.31,55.4588711]
[1769701051855,169.89010446,118.39,118.28,47.8393711]
[1769701052062,7.6166,118.36,118.28,47.8393711]
[1769701052260,51.44100446,118.38,118.28,47.8393711]
[1769701052467,51.44100446,118.42,118.31,47.8393711]
[1769701052860,59.05410446,118.42,118.32,48.50865921]
[1769701053056,59.05410446,118.42,118.33,48.50865921]
[1769701053256,51.44100446,118.42,118.33,48.50865921]
[1769701053462,7.6134,118.41,118.33,56.12685921]
[1769701053657,169.14707511,118.45,118.34,48.50865921]
[1769701053862,50.75847511,118.45,118.35,48.50865921]
[1769701054068,50.75847511,118.45,118.37,48.50865921]
[1769701054270,50.75847511,118.46,118.37,48.50865921]
[1769701054464,169.14097511,118.46,118.37,48.50865921]
[1769701054669,169.14097511,118.46,118.34,118.492]
[1769701054670,50.75847511,118.45,118.34,167.00065921]
[1769701054968,50.75847511,118.45,118.36,7.6163]
[1769701055463,7.6104,118.46,118.38,56.12365921]
[1769701056371,50.75847511,118.43,118.35,48.50865921]
[1769701056772,50.75847511,118.43,118.35,56.12535921]
[1769701057072,50.75847511,118.43,118.35,48.50865921]
[1769701057466,7.6133,118.41,118.33,337.54]
[1769701057665,58.37177511,118.41,118.33,337.54]
[1769701057872,50.75847511,118.41,118.33,337.54]
[1769701058072,50.75847511,118.41,118.33,393.66645921]
[1769701059069,125.24111482,118.43,118.34,48.50865921]
[1769701059070,7.6121,118.43,118.34,48.50865921]
[1769701059274,50.75847511,118.45,118.34,48.50865921]
[1769701059462,169.16957511,118.43,118.34,48.50865921]
[1769701059774,57.58878993,118.42,118.33,337.54]
[1769701059973,169.18867511,118.41,118.33,337.54]
[1769701060176,50.75847511,118.41,118.33,337.54]
[1769701060376,50.75847511,118.41,118.33,386.04865921]
[1769701060771,57.58878993,118.4,118.31,7.6192]
[1769701061076,6.83031482,118.38,118.3,48.50865921]
[1769701061267,57.58878993,118.38,118.3,48.50865921]
[1769701061472,7.6166,118.36,118.3,48.50865921]
[1769701061673,176.04978993,118.38,118.28,337.46]
[1769701062164,176.04978993,118.38,118.28,385.96865921]
[1769701062372,6.83031482,118.36,118.28,385.96865921]
[1769701062769,6.83031482,118.36,118.28,48.50865921]
[1769701062972,50.75847511,118.33,118.25,48.50865921]
[1769701063175,6.83031482,118.32,118.25,48.50865921]
[1769701063379,57.58878993,118.32,118.24,337.44]
[1769701064373,7.6199,118.31,118.24,337.44]
[1769701064576,57.58878993,118.34,118.24,385.94865921]
[1769701064977,7.6197,118.31,118.24,385.94865921]
[1769701065370,50.75847511,118.27,118.16,48.50865921]
[1769701065567,118.5516,118.29,118.11,118.7267]
[1769701065568,176.21788993,118.21,118.11,48.50865921]
[1769701065770,118.6813,118.16,118.06,48.50865921]
[1769701065973,6.83031482,118.12,117.98,55.33897403]
[1769701066274,57.58878993,118.15,118.03,48.50865921]
[1769701066477,50.75847511,118.15,118.03,48.50865921]
[1769701067874,169.44997511,118.15,118.03,48.50865921]
[1769701068271,118.7008,118.14,118.03,48.50865921]
[1769701068866,118.7225,118.12,118.03,48.50865921]
[1769701069066,169.48097511,118.12,118.03,48.50865921]
[1769701069267,126.3548,118.12,118.03,48.50865921]
[1769701069467,118.7008,118.14,118.03,48.50865921]
[1769701069671,118.7133,118.13,118.03,48.50865921]
[1769701069868,169.49047511,118.11,118.0,257.72865921]
[1769701070581,177.12357511,118.11,118.01,48.50865921]
[1769701071087,118.7008,118.14,118.01,48.50865921]
[1769701071088,118.7008,118.14,118.01,55.33897403]
[1769701071281,50.75847511,118.15,118.04,48.50865921]
[1769701071775,118.7099,118.13,118.04,48.50865921]
[1769701071973,118.734,118.11,118.04,48.50865921]
[1769701072373,126.367,118.11,118.04,48.50865921]
[1769701072773,169.46837511,118.13,118.04,48.50865921]
[1769701072973,177.09977511,118.13,118.04,48.50865921]
[1769701073275,50.75847511,118.16,118.02,48.50865921]
[1769701073476,169.44957511,118.15,118.02,55.33897403]
[1769701073680,50.75847511,118.13,118.02,48.50865921]
[1769701074581,50.75847511,118.11,118.02,48.50865921]
[1769701075380,174.3035989,118.1,118.0,209.22]
[1769701075978,48.73298408,118.09,118.0,209.22]
[1769701076270,48.73298408,118.09,118.0,260.41693579]
[1769701076679,174.2845989,118.12,118.01,51.19693579]
[1769701076879,48.73298408,118.11,118.01,51.19693579]
[1769701078188,56.36588408,118.11,118.01,51.19693579]
[1769701079180,48.73298408,118.1,118.01,51.19693579]
[1769701079483,56.36648408,118.1,118.01,51.19693579]
[1769701080680,48.73298408,118.08,117.98,51.19693579]
[1769701082285,56.36838408,118.07,117.98,51.19693579]
[1769701083490,56.36898408,118.06,117.95,58.83943579]
[1769701083678,55.5632989,118.06,117.95,58.83943579]
[1769701084085,7.6367,118.05,117.95,58.83943579]
[1769701084587,56.36968408,118.05,117.95,58.83943579]
[1769701084790,48.73298408,118.02,117.92,51.19693579]
[1769701085089,48.73298408,117.99,117.89,51.19693579]
[1769701085288,56.37458408,117.97,117.87,51.19693579]
[1769701086289,48.73298408,117.97,117.88,51.19693579]
[1769701086799,48.73298408,117.97,117.89,7.6464]
[1769701087494,48.73298408,117.97,117.87,125.82288622]
[1769701087687,125.69138622,118.01,117.87,125.82288622]
[1769701087688,48.73298408,118.0,117.91,51.19693579]
[1769701088201,48.73298408,117.97,117.88,51.19693579]
[1769701088397,55.5925703,117.94,117.85,389.45693579]
[1769701088599,7.6443,117.93,117.85,389.45693579]
[1769701088903,7.6443,117.93,117.85,51.19693579]
[1769701089092,48.73298408,117.91,117.83,3.74879243]
[1769701089698,55.5925703,117.9,117.83,3.74879243]
[1769701090492,48.73298408,117.93,117.83,54.94572822]
[1769701091901,56.37478408,117.97,117.87,51.19693579]
[1769701092094,48.73298408,117.97,117.87,51.19693579]
[1769701092400,48.73298408,117.96,117.87,51.19693579]
[1769701092595,48.73298408,117.95,117.85,7.6491]
[1769701092993,48.73298408,117.95,117.85,170.18193579]
[1769701093187,48.73298408,117.95,117.85,51.19693579]
[1769701093188,48.73298408,117.94,117.85,51.19693579]
[1769701093596,48.73298408,117.92,117.83,3.74879243]
[1769701093798,56.37828408,117.92,117.83,3.74879243]
[1769701095407,56.37828408,117.92,117.83,11.39929243]
[1769701095998,48.73298408,117.95,117.85,51.19693579]
[1769701096305,167.59548408,117.98,117.87,51.19693579]
[1769701096608,167.56908408,118.01,117.91,58.05652201]
[1769701096906,48.73298408,117.99,117.91,51.19693579]
[1769701097205,48.73298408,117.98,117.88,58.84383579]
[1769701097407,48.73298408,117.96,117.85,177.04042201]
[1769701097704,174.4645703,117.97,117.86,51.19693579]
[1769701098302,48.73298408,117.95,117.86,51.19693579]
[1769701099201,48.73298408,117.98,117.87,51.19693579]
[1769701099602,48.73298408,117.98,117.88,170.15723579]
[1769701099807,56.37418408,117.98,117.88,51.19693579]
[1769701100703,48.73298408,117.98,117.89,170.14723579]
[1769701100903,48.73298408,117.98,117.89,51.19693579]
[1769701101607,48.73298408,118.02,117.92,51.19693579]
[1769701101910,48.73298408,118.02,117.93,58.05652201]
[1769701102206,7.6382,118.03,117.95,7.6428]
[1769701102506,56.37118408,118.03,117.93,58.05652201]
[1769701103010,56.37118408,118.03,117.95,7.6428]
[1769701104500,48.73298408,118.03,117.93,58.05652201]
[1769701104699,48.73298408,118.03,117.94,51.19693579]
[1769701106314,48.73298408,118.03,117.95,7.6428]
[1769701106513,48.73298408,118.03,117.94,51.19693579]
[1769701107112,48.43427221,118.01,117.91,51.17709198]
[1769701107909,7.6398,118.0,117.92,7.6447]
[1769701108112,56.07407221,118.0,117.92,7.6447]
[1769701108614,48.43427221,117.98,117.88,51.17709198]
[1769701108816,48.43427221,117.95,117.85,51.17709198]
[1769701109008,7.6443,117.93,117.85,58.82639198]
[1769701109214,55.29385843,117.95,117.85,51.17709198]
[1769701109816,55.29385843,117.95,117.86,7.6486]
[1769701110015,48.43427221,117.94,117.85,51.17709198]
[1769701110218,48.43427221,117.94,117.86,7.6485]
[1769701110910,48.43427221,117.94,117.85,51.17709198]
[1769701111116,55.29385843,117.93,117.84,7.6495]
[1769701111412,48.43427221,117.92,117.83,342.30879243]
[1769701111613,48.43427221,117.92,117.83,512.49468441]
[1769701111818,48.43427221,117.92,117.84,51.17709198]
[1769701112814,48.43427221,117.92,117.83,3.74879243]
[1769701113718,52.65005715,117.89,117.83,3.74879243]
[1769701115911,52.65005715,117.89,117.78,387.7038551]
[1769701115912,52.65005715,117.86,117.78,49.0838551]
[1769701116116,52.65005715,117.86,117.74,119.1005]
[1769701116117,52.65005715,117.86,117.75,49.0838551]
[1769701116517,60.29905715,117.86,117.76,7.6547]
[1769701116718,60.29905715,117.86,117.76,56.7385551]
[1769701117115,52.65005715,117.86,117.76,168.1591551]
[1769701117317,52.65005715,117.86,117.77,49.0838551]
[1769701118822,52.65005715,117.84,117.74,56.7399551]
[1769701119328,52.65005715,117.83,117.74,49.0838551]
[1769701119723,60.30185715,117.82,117.72,338.72]
[1769701120223,60.30185715,117.82,117.72,387.8038551]
[1769701121319,60.30185715,117.82,117.72,395.4612551]
[1769701121928,52.65005715,117.8,117.72,338.72]
[1769701122721,7.6537,117.79,117.7,49.0838551]
[1769701123230,60.30375715,117.79,117.7,49.0838551]
[1769701123726,52.65005715,117.77,117.67,168.2560551]
[1769701123926,52.65005715,117.77,117.68,49.0838551]
[1769701124122,171.68615715,117.81,117.71,49.0838551]
[1769701124326,52.65005715,117.8,117.71,49.0838551]
[1769701125119,52.65005715,117.79,117.68,49.0838551]
[1769701125722,52.65005715,117.78,117.68,49.0838551]
[1769701125928,52.65005715,117.75,117.65,49.0838551]
[1769701126228,60.30815715,117.72,117.62,49.0838551]
[1769701126428,52.65005715,117.72,117.62,55.94344132]
[1769701126923,60.30635715,117.75,117.64,49.0838551]
[1769701127124,52.65005715,117.78,117.66,49.0838551]
[1769701127327,52.65005715,117.77,117.67,49.0838551]
[1769701127527,59.50964337,117.77,117.67,49.0838551]
[1769701127724,60.30545715,117.76,117.67,49.0838551]
[1769701127922,52.65005715,117.76,117.67,49.0838551]
[1769701128616,59.50964337,117.81,117.68,55.94344132]
[1769701128917,52.65005715,117.81,117.72,49.0838551]
[1769701129125,52.65005715,117.84,117.72,55.94344132]
[1769701129426,52.65005715,117.84,117.73,49.0838551]
[1769701129727,7.6492,117.86,117.75,49.0838551]
[1769701129927,52.65005715,117.87,117.76,49.0838551]
[1769701130123,52.65005715,117.87,117.78,49.0838551]
[1769701130424,171.62105715,117.87,117.78,49.0838551]
[1769701130627,52.65005715,117.87,117.78,49.0838551]
[1769701131526,52.65005715,117.9,117.79,49.0838551]
[1769701131832,52.65005715,117.9,117.8,49.0838551]
[1769701132229,52.65005715,117.9,117.8,56.7360551]
[1769701132725,52.65005715,117.9,117.81,49.0838551]
[1769701133131,52.65005715,117.9,117.78,63.59734132]
[1769701133325,52.65005715,117.9,117.79,388.1038551]
[1769701133526,52.65005715,117.9,117.8,49.0838551]
[1769701133928,52.65005715,117.93,117.82,168.1044551]
[1769701134140,52.65005715,117.93,117.84,55.94344132]
[1769701134324,52.65005715,117.96,117.85,395.7327551]
[1769701134822,52.65005715,118.0,117.89,49.0838551]
[1769701135634,55.30890394,117.99,117.89,49.0838551]
[1769701136028,181.80120394,117.99,117.89,49.0838551]
[1769701136237,48.44931772,117.98,117.89,49.0838551]
[1769701136432,48.44931772,117.96,117.86,51.70475049]
[1769701136634,174.21930394,117.93,117.83,51.70475049]
[1769701136839,48.44931772,117.9,117.8,51.70475049]
[1769701137730,48.44931772,117.9,117.8,170.74485049]
[1769701138034,48.44931772,117.9,117.81,51.70475049]
[1769701138540,56.09381772,117.93,117.82,51.70475049]
[1769701138739,174.22980394,117.92,117.82,51.70475049]
[1769701139035,48.44931772,117.91,117.82,51.70475049]
[1769701139232,48.44931772,117.91,117.8,7.6523]
[1769701139434,48.44931772,117.88,117.78,338.9]
[1769701139636,55.30890394,117.88,117.78,338.9]
[1769701139935,48.44931772,117.88,117.78,390.60475049]
[1769701140139,48.44931772,117.88,117.78,51.70475049]
[1769701140338,48.44931772,117.88,117.78,170.76535049]
[1769701140537,48.44931772,117.88,117.79,51.70475049]
[1769701140734,48.44931772,117.87,117.77,338.9]
[1769701140929,174.29060394,117.86,117.76,51.70475049]
[1769701141236,174.29060394,117.86,117.74,119.1007]
[1769701141237,48.44931772,117.82,117.73,51.70475049]
[1769701142031,48.44931772,117.82,117.73,170.81635049]
[1769701142434,48.44931772,117.82,117.73,509.71635049]
[1769701142631,6.85958622,117.84,117.73,509.71635049]
[1769701142834,55.30890394,117.84,117.73,509.71635049]
[1769701143431,55.30890394,117.84,117.74,7.6562]
[1769701144337,62.95920394,117.84,117.74,7.6562]
[1769701145738,174.31020394,117.84,117.74,51.70475049]
[1769701146244,181.96070394,117.84,117.74,51.70475049]
[1769701147033,55.30890394,117.82,117.71,517.44595049]
[1769701147244,48.44931772,117.84,117.74,119.1013]
[1769701147445,48.44931772,117.84,117.75,7.6556]
[1769701147738,55.32511694,117.84,117.74,51.70475049]
[1769701148245,56.10021772,117.83,117.74,51.70475049]
[1769701148638,167.46291772,117.83,117.74,51.70475049]
[1769701148948,48.44931772,117.81,117.72,338.96]
[1769701149446,56.10151772,117.81,117.72,338.96]
[1769701150147,56.10151772,117.81,117.72,390.66475049]
[1769701150541,56.10151772,117.81,117.69,119.151]
[1769701150542,48.44931772,117.79,117.69,51.70475049]
[1769701150743,55.32511694,117.78,117.69,51.70475049]
[1769701152050,7.6549,117.77,117.69,51.70475049]
[1769701152542,56.10491772,117.76,117.67,7.6607]
[1769701152735,48.44931772,117.76,117.65,59.36665049]
[1769701153047,167.54401772,117.75,117.65,59.36665049]
[1769701153948,48.44931772,117.74,117.65,59.36665049]
[1769701154348,48.44931772,117.77,117.67,51.70475049]
[1769701154649,48.44931772,117.77,117.68,51.70475049]
[1769701154848,48.44931772,117.77,117.69,7.6596]
[1769701156250,7.6541,117.78,117.7,7.6589]
[1769701156545,48.44931772,117.74,117.63,51.70475049]
[1769701156746,167.57311772,117.72,117.63,51.70475049]
[1769701157249,56.10761772,117.72,117.63,51.70475049]
[1769701157450,174.41911694,117.75,117.64,59.36755049]
[1769701157645,167.55301772,117.74,117.64,398.46755049]
[1769701157943,48.44931772,117.74,117.65,7.6622]
[1769701158143,167.55601772,117.74,117.64,390.82475049]
[1769701158449,48.44931772,117.73,117.64,390.82475049]
[1769701158844,56.10661772,117.73,117.64,390.82475049]
[1769701159248,48.44931772,117.73,117.65,51.70475049]
[1769701159454,6.87579922,117.75,117.65,51.70475049]
[1769701159752,7.6558,117.76,117.67,51.70475049]
[1769701159954,119.0732,117.77,117.67,51.70475049]
[1769701160251,119.0822,117.76,117.68,339.16]
[1769701160854,119.0822,117.76,117.66,339.16]
[1769701160855,119.104,117.74,117.66,339.16]
[1769701161041,119.104,117.74,117.64,51.70475049]
[1769701161352,119.104,117.74,117.65,339.18]
[1769701161747,167.54201772,117.75,117.65,390.88475049]
[1769701162151,119.0822,117.76,117.66,51.70475049]
[1769701162847,7.6563,117.75,117.66,51.70475049]
[1769701163753,167.52251772,117.77,117.68,58.58054971]
[1769701163754,7.6547,117.77,117.68,58.58054971]
[1769701164254,167.52121772,117.77,117.68,51.70475049]
[1769701164550,119.0923,117.75,117.67,332.64]
[1769701164749,119.0923,117.75,117.65,51.70475049]
[1769701164750,119.1022,117.74,117.65,390.90475049]
[1769701164950,119.1022,117.74,117.65,51.70475049]
[1769701165151,167.54161772,117.75,117.66,51.70475049]
[1769701165353,48.44931772,117.75,117.66,51.70475049]
[1769701165753,7.6572,117.73,117.66,51.70475049]
[1769701166353,119.1051,117.74,117.66,51.70475049]
[1769701166556,238.2362,117.73,117.65,339.22]
[1769701166857,48.83803146,117.74,117.65,339.22]
[1769701167057,7.6574,117.73,117.65,390.47400633]
[1769701168149,7.6574,117.73,117.65,51.25400633]
[1769701168351,7.6578,117.72,117.65,390.47400633]
[1769701168649,48.83803146,117.72,117.61,51.25400633]
[1769701168845,48.83803146,117.7,117.61,51.25400633]
[1769701169050,167.99283146,117.69,117.58,51.25400633]
[1769701169246,167.99283146,117.69,117.57,3.74879243]
[1769701169247,48.83803146,117.68,117.6,51.25400633]
[1769701169744,7.6611,117.67,117.6,51.25400633]
[1769701170852,56.49913146,117.67,117.58,339.24]
[1769701171058,7.6617,117.66,117.58,390.49400633]
[1769701171259,7.6617,117.66,117.58,390.51400633]
[1769701171552,56.49943146,117.67,117.58,390.51400633]
[1769701172156,7.6602,117.69,117.59,58.92010633]
[1769701172658,50.70162212,117.69,117.6,339.28]
[1769701172855,50.70162212,117.68,117.57,11.41579243]
[1769701173061,57.57742134,117.68,117.58,389.91729238]
[1769701173355,50.70162212,117.68,117.59,50.63729238]
[1769701173754,50.70162212,117.68,117.59,389.93729238]
[1769701174153,7.6618,117.66,117.59,50.63729238]
[1769701174460,7.6618,117.66,117.59,389.95729238]
[1769701175056,50.70162212,117.68,117.6,50.63729238]
[1769701175561,58.36202212,117.68,117.6,50.63729238]
[1769701175959,176.71302134,117.71,117.6,50.63729238]
[1769701176159,50.70162212,117.7,117.6,50.63729238]
[1769701177360,7.6599,117.69,117.61,7.665]
[1769701177555,126.01139922,117.71,117.61,7.665]
[1769701177556,50.70162212,117.73,117.61,50.63729238]
[1769701177966,7.659,117.71,117.62,50.63729238]
[1769701178166,7.659,117.71,117.63,339.38]
[1769701178469,7.659,117.71,117.64,7.663]
[1769701178970,50.70162212,117.73,117.64,50.63729238]
[1769701179166,119.0937,117.75,117.64,50.63729238]
[1769701179664,7.6575,117.73,117.66,7.6617]
[1769701179967,169.78572212,117.76,117.64,50.63729238]
[1769701179968,50.70162212,117.76,117.64,57.5130916]
[1769701180168,7.6566,117.74,117.64,65.1760916]
[1769701180368,7.6566,117.74,117.65,50.63729238]
[1769701180668,7.6566,117.74,117.66,390.01729238]